[Event "*** Titled Tuesday Blitz AM"]
[Site "Chess.com"]
[Date "2020.01.07"]
[Round "2"]
[White "pedroholly22"]
[Black "Gordima"]
[Result "0-1"]
[WhiteElo "2389"]
[BlackElo "2830"]
[TimeControl "180+2"]
[EndTime "9:21:09 PST"]
[Termination "Gordima won by resignation"]

1. e4 {[%clk 0:02:54.8]} 1... e5 {[%clk 0:03:00.4]} 2. Nf3 {[%clk 0:02:54.4]}
2... Nc6 {[%clk 0:03:02]} 3. Bb5 {[%clk 0:02:54.9]} 3... Nf6 {[%clk 0:03:03.5]}
4. O-O {[%clk 0:02:55.3]} 4... Nxe4 {[%clk 0:03:04.9]} 5. d4 {[%clk 0:02:53.8]}
5... Nd6 {[%clk 0:03:05.5]} 6. dxe5 {[%clk 0:02:54.9]} 6... Nxb5 {[%clk
0:03:04.8]} 7. a4 {[%clk 0:02:55.9]} 7... d6 {[%clk 0:03:02.6]} 8. Re1 {[%clk
0:01:41.6]} 8... Nxe5 {[%clk 0:02:54.1]} 9. Nxe5 {[%clk 0:01:38.9]} 9... dxe5
{[%clk 0:02:55.5]} 10. Rxe5+ {[%clk 0:01:38.8]} 10... Be6 {[%clk 0:02:51.9]} 11.
Rxe6+ {[%clk 0:01:26.9]} 11... fxe6 {[%clk 0:02:52.4]} 12. Qh5+ {[%clk
0:01:28.8]} 12... g6 {[%clk 0:02:43.1]} 13. Qxb5+ {[%clk 0:01:27.4]} 13... Qd7
{[%clk 0:02:44.1]} 14. Qe2 {[%clk 0:01:25.2]} 14... Bg7 {[%clk 0:02:43.8]} 15.
Nc3 {[%clk 0:01:23.6]} 15... O-O {[%clk 0:02:30.8]} 16. Be3 {[%clk 0:01:21.4]}
16... Rad8 {[%clk 0:02:28.9]} 17. Re1 {[%clk 0:01:16]} 17... a6 {[%clk
0:02:15.7]} 18. a5 {[%clk 0:01:07.9]} 18... Qc6 {[%clk 0:02:15.5]} 19. Bg5
{[%clk 0:01:03.4]} 19... Rd7 {[%clk 0:02:11.6]} 20. Ne4 {[%clk 0:01:01.9]} 20...
Bxb2 {[%clk 0:02:09.1]} 21. c3 {[%clk 0:00:58.9]} 21... Qb5 {[%clk 0:01:14.3]}
22. Qxb5 {[%clk 0:00:47.9]} 22... axb5 {[%clk 0:01:16.1]} 23. Nf6+ {[%clk
0:00:49.8]} 23... Rxf6 {[%clk 0:01:17.2]} 24. Bxf6 {[%clk 0:00:51.2]} 24... b4
{[%clk 0:01:14.4]} 25. Rxe6 {[%clk 0:00:43.8]} 25... Rd1+ {[%clk 0:01:13.2]} 0-1

[Event "*** Titled Tuesday Blitz AM"]
[Site "Chess.com"]
[Date "2020.01.07"]
[Round "2"]
[White "ViennaRocket"]
[Black "wannabe2700"]
[Result "0-1"]
[WhiteElo "2382"]
[BlackElo "2787"]
[TimeControl "180+2"]
[EndTime "9:21:20 PST"]
[Termination "wannabe2700 won by resignation"]

1. d4 {[%clk 0:03:00.7]} 1... Nf6 {[%clk 0:03:00.2]} 2. c4 {[%clk 0:03:02.3]}
2... e6 {[%clk 0:02:57.2]} 3. Nc3 {[%clk 0:03:03.6]} 3... Bb4 {[%clk 0:02:57.5]}
4. Qc2 {[%clk 0:03:05.1]} 4... O-O {[%clk 0:02:57.8]} 5. e4 {[%clk 0:03:04.5]}
5... d5 {[%clk 0:02:58.5]} 6. e5 {[%clk 0:03:05.1]} 6... Ne4 {[%clk 0:02:59.4]}
7. Bd3 {[%clk 0:03:06.7]} 7... c5 {[%clk 0:03:00.5]} 8. Nf3 {[%clk 0:03:08.2]}
8... cxd4 {[%clk 0:02:57.4]} 9. Nxd4 {[%clk 0:03:09.4]} 9... Nd7 {[%clk
0:02:55.3]} 10. Bf4 {[%clk 0:03:10.1]} 10... Qh4 {[%clk 0:02:53.3]} 11. g3
{[%clk 0:03:10.3]} 11... Qh5 {[%clk 0:02:39.1]} 12. Bxe4 {[%clk 0:03:10.4]}
12... dxe4 {[%clk 0:02:39.3]} 13. Qxe4 {[%clk 0:03:11.9]} 13... Bxc3+ {[%clk
0:02:02.1]} 14. bxc3 {[%clk 0:03:11.1]} 14... Nc5 {[%clk 0:02:00.4]} 15. Qe2
{[%clk 0:03:09.7]} 15... Qh3 {[%clk 0:01:53.7]} 16. O-O-O {[%clk 0:03:04.8]}
16... b6 {[%clk 0:01:50.2]} 17. Nb5 {[%clk 0:02:59.7]} 17... Bb7 {[%clk
0:01:49.4]} 18. Rhe1 {[%clk 0:02:59.8]} 18... Qxh2 {[%clk 0:01:45.9]} 19. Nd6
{[%clk 0:02:59.6]} 19... Bc6 {[%clk 0:01:46.2]} 20. Be3 {[%clk 0:02:55.4]} 20...
Na4 {[%clk 0:01:44.8]} 21. Bd4 {[%clk 0:02:54]} 21... Rad8 {[%clk 0:01:41.5]}
22. f4 {[%clk 0:02:54.9]} 22... Qxg3 {[%clk 0:01:40.8]} 23. Qe3 {[%clk
0:02:51.3]} 23... Qxe3+ {[%clk 0:01:28.8]} 24. Rxe3 {[%clk 0:02:51.9]} 24... g6
{[%clk 0:01:18.5]} 25. Rd2 {[%clk 0:02:48]} 25... h5 {[%clk 0:01:17.8]} 26. Rg3
{[%clk 0:02:47.8]} 26... Kh7 {[%clk 0:01:18.4]} 27. Rh2 {[%clk 0:02:46.6]} 27...
Rd7 {[%clk 0:01:02.1]} 28. Kc2 {[%clk 0:02:46.9]} 28... Rc7 {[%clk 0:01:00]} 29.
Kb3 {[%clk 0:02:46.7]} 29... Rb8 {[%clk 0:00:59.3]} 30. Kc2 {[%clk 0:02:28.2]}
30... Bb7 {[%clk 0:00:51.7]} 31. Kb3 {[%clk 0:02:27.9]} 31... Nc5+ {[%clk
0:00:48]} 32. Bxc5 {[%clk 0:02:28.8]} 32... bxc5 {[%clk 0:00:47.5]} 33. Rb2
{[%clk 0:02:27.6]} 33... Be4+ {[%clk 0:00:43.7]} 34. Ka3 {[%clk 0:02:28.2]}
34... Rxb2 {[%clk 0:00:44.9]} 35. Kxb2 {[%clk 0:02:29.6]} 35... Bf5 {[%clk
0:00:45.3]} 36. Rg2 {[%clk 0:02:25.5]} 36... Kh6 {[%clk 0:00:45.5]} 37. Rh2
{[%clk 0:02:26.7]} 37... g5 {[%clk 0:00:45.3]} 38. fxg5+ {[%clk 0:02:26.5]}
38... Kxg5 {[%clk 0:00:47.2]} 39. Kc1 {[%clk 0:02:27.5]} 39... h4 {[%clk
0:00:46.4]} 40. Kd2 {[%clk 0:02:26.8]} 40... Kg4 {[%clk 0:00:45.2]} 41. Nxf5
{[%clk 0:02:24.2]} 41... exf5 {[%clk 0:00:45.8]} 42. Rg2+ {[%clk 0:02:24]} 42...
Kf3 {[%clk 0:00:45.7]} 43. Rg5 {[%clk 0:02:24.2]} 43... f4 {[%clk 0:00:46.7]}
44. Rf5 {[%clk 0:02:25]} 44... h3 {[%clk 0:00:46.1]} 45. Ke1 {[%clk 0:02:25.9]}
45... Rb7 {[%clk 0:00:42.3]} 46. Rh5 {[%clk 0:02:22.4]} 46... Rb1+ {[%clk
0:00:39.7]} 47. Kd2 {[%clk 0:02:23.4]} 47... h2 {[%clk 0:00:40.5]} 0-1

[Event "*** Titled Tuesday Blitz AM"]
[Site "Chess.com"]
[Date "2020.01.07"]
[Round "2"]
[White "Kirill_Kopenkin"]
[Black "hazy13"]
[Result "1-0"]
[WhiteElo "2497"]
[BlackElo "2216"]
[TimeControl "180+2"]
[EndTime "9:21:20 PST"]
[Termination "Kirill_Kopenkin won by checkmate"]

1. e4 {[%clk 0:03:01.9]} 1... c5 {[%clk 0:03:00.6]} 2. Nf3 {[%clk 0:03:01.9]}
2... g6 {[%clk 0:03:02]} 3. d4 {[%clk 0:03:02.7]} 3... cxd4 {[%clk 0:03:03.9]}
4. Nxd4 {[%clk 0:03:04.1]} 4... Nc6 {[%clk 0:03:05.2]} 5. c4 {[%clk 0:03:04.9]}
5... Bg7 {[%clk 0:03:05.9]} 6. Be3 {[%clk 0:03:06.3]} 6... Nf6 {[%clk
0:03:06.7]} 7. Nc3 {[%clk 0:03:07.6]} 7... Ng4 {[%clk 0:03:08.3]} 8. Qxg4 {[%clk
0:03:08.3]} 8... Nxd4 {[%clk 0:03:09.5]} 9. Qd1 {[%clk 0:03:09.1]} 9... Ne6
{[%clk 0:03:11.1]} 10. Qd2 {[%clk 0:03:04.4]} 10... Qa5 {[%clk 0:03:11.9]} 11.
Rc1 {[%clk 0:03:02.6]} 11... b6 {[%clk 0:03:12.8]} 12. Be2 {[%clk 0:02:59.2]}
12... Bb7 {[%clk 0:03:13.5]} 13. f3 {[%clk 0:03:00.3]} 13... f5 {[%clk
0:03:09.3]} 14. exf5 {[%clk 0:02:44.6]} 14... gxf5 {[%clk 0:03:11.2]} 15. O-O
{[%clk 0:02:43]} 15... Rg8 {[%clk 0:03:07.2]} 16. Rfd1 {[%clk 0:02:28.1]} 16...
Rd8 {[%clk 0:02:57]} 17. Nd5 {[%clk 0:02:20.4]} 17... Qxd2 {[%clk 0:02:26.9]}
18. Rxd2 {[%clk 0:02:16.6]} 18... Be5 {[%clk 0:01:38.8]} 19. f4 {[%clk
0:01:46.5]} 19... Bxd5 {[%clk 0:01:38.5]} 20. Rxd5 {[%clk 0:01:46.2]} 20... Bxf4
{[%clk 0:01:39.4]} 21. Bh5+ {[%clk 0:01:45.6]} 21... Kf8 {[%clk 0:01:38.7]} 22.
Rxf5+ {[%clk 0:01:27.5]} 22... Kg7 {[%clk 0:01:39.5]} 23. Bxf4 {[%clk
0:01:27.7]} 23... Rgf8 {[%clk 0:00:52.8]} 24. Be5+ {[%clk 0:01:21]} 24... Kh6
{[%clk 0:00:52.8]} 25. Rcf1 {[%clk 0:01:15.7]} 25... d6 {[%clk 0:00:44.6]} 26.
Bc3 {[%clk 0:01:12]} 26... Rxf5 {[%clk 0:00:23.9]} 27. Rxf5 {[%clk 0:01:13.9]}
27... Ng7 {[%clk 0:00:18.1]} 28. Bd2# {[%clk 0:01:14.7]} 1-0

[Event "*** Titled Tuesday Blitz AM"]
[Site "Chess.com"]
[Date "2020.01.07"]
[Round "2"]
[White "Flawless_Fighter"]
[Black "Peroncio"]
[Result "0-1"]
[WhiteElo "2453"]
[BlackElo "2744"]
[TimeControl "180+2"]
[EndTime "9:21:26 PST"]
[Termination "Peroncio won by resignation"]

1. e4 {[%clk 0:03:01.9]} 1... e6 {[%clk 0:03:00]} 2. d4 {[%clk 0:03:02.1]} 2...
d5 {[%clk 0:03:01.5]} 3. Nd2 {[%clk 0:03:01.6]} 3... Be7 {[%clk 0:03:02.5]} 4.
Bd3 {[%clk 0:03:00.9]} 4... c5 {[%clk 0:03:03]} 5. dxc5 {[%clk 0:02:59.5]} 5...
Nf6 {[%clk 0:03:04.4]} 6. exd5 {[%clk 0:03:00.1]} 6... Qxd5 {[%clk 0:02:52.2]}
7. Ngf3 {[%clk 0:03:00.9]} 7... Nbd7 {[%clk 0:02:49.7]} 8. b4 {[%clk 0:03:00.4]}
8... a5 {[%clk 0:02:47.1]} 9. Bc4 {[%clk 0:02:52.7]} 9... Qh5 {[%clk 0:02:41.4]}
10. c3 {[%clk 0:02:49.2]} 10... Ne5 {[%clk 0:02:33.6]} 11. Be2 {[%clk
0:02:43.9]} 11... Nxf3+ {[%clk 0:02:30.9]} 12. Nxf3 {[%clk 0:02:43.8]} 12... O-O
{[%clk 0:02:24.3]} 13. O-O {[%clk 0:02:42.6]} 13... axb4 {[%clk 0:02:18]} 14.
cxb4 {[%clk 0:02:43.3]} 14... Nd5 {[%clk 0:02:12.1]} 15. Qb3 {[%clk 0:02:22.7]}
15... Bf6 {[%clk 0:02:08.6]} 16. Bb2 {[%clk 0:02:23.3]} 16... Nf4 {[%clk
0:02:02.6]} 17. Rfe1 {[%clk 0:02:14.8]} 17... Qg4 {[%clk 0:01:54.2]} 18. g3
{[%clk 0:01:48.1]} 18... Bxb2 {[%clk 0:01:44]} 19. Qxb2 {[%clk 0:01:47]} 19...
Nxe2+ {[%clk 0:01:45.5]} 20. Qxe2 {[%clk 0:01:48.2]} 20... Qxb4 {[%clk 0:01:47]}
21. Rec1 {[%clk 0:01:06.3]} 21... Ra3 {[%clk 0:01:40]} 22. Rab1 {[%clk
0:00:57.3]} 22... Qa5 {[%clk 0:01:05.4]} 23. Rb2 {[%clk 0:00:53.4]} 23... Bd7
{[%clk 0:01:05.6]} 24. Ne5 {[%clk 0:00:53.3]} 24... Bc6 {[%clk 0:00:40.8]} 25.
Nc4 {[%clk 0:00:50.7]} 25... Qa6 {[%clk 0:00:42.2]} 26. Nxa3 {[%clk 0:00:50.8]}
26... Qxa3 {[%clk 0:00:44.1]} 27. Rb3 {[%clk 0:00:50.3]} 27... Qxc1+ {[%clk
0:00:45.4]} 28. Qf1 {[%clk 0:00:49.1]} 28... Qxc5 {[%clk 0:00:46]} 0-1

[Event "*** Titled Tuesday Blitz AM"]
[Site "Chess.com"]
[Date "2020.01.07"]
[Round "2"]
[White "nouma78"]
[Black "Msb2"]
[Result "0-1"]
[WhiteElo "2519"]
[BlackElo "2863"]
[TimeControl "180+2"]
[EndTime "9:21:33 PST"]
[Termination "Msb2 won by resignation"]

1. d4 {[%clk 0:03:01.9]} 1... Nf6 {[%clk 0:02:51.4]} 2. c4 {[%clk 0:03:01.8]}
2... e6 {[%clk 0:02:46.7]} 3. Nc3 {[%clk 0:03:01.2]} 3... Bb4 {[%clk 0:02:45.5]}
4. e3 {[%clk 0:02:58.8]} 4... O-O {[%clk 0:02:42.1]} 5. Ne2 {[%clk 0:02:52.5]}
5... c6 {[%clk 0:02:42.6]} 6. a3 {[%clk 0:02:39.9]} 6... Ba5 {[%clk 0:02:33.7]}
7. c5 {[%clk 0:02:34.9]} 7... d5 {[%clk 0:02:31.9]} 8. cxd6 {[%clk 0:02:27.4]}
8... Qxd6 {[%clk 0:02:24.7]} 9. b4 {[%clk 0:02:28.3]} 9... Bc7 {[%clk
0:02:25.1]} 10. g3 {[%clk 0:02:21.6]} 10... e5 {[%clk 0:02:14.9]} 11. Bg2 {[%clk
0:02:18]} 11... Bg4 {[%clk 0:02:08]} 12. Bb2 {[%clk 0:02:00.4]} 12... exd4
{[%clk 0:02:08.2]} 13. Qxd4 {[%clk 0:01:59.8]} 13... Qxd4 {[%clk 0:02:07.3]} 14.
Nxd4 {[%clk 0:02:00.9]} 14... Nbd7 {[%clk 0:02:08.9]} 15. h3 {[%clk 0:02:00.2]}
15... Bh5 {[%clk 0:01:53.4]} 16. f4 {[%clk 0:01:53.3]} 16... Rfe8 {[%clk
0:01:33]} 17. Kf2 {[%clk 0:01:53.2]} 17... h6 {[%clk 0:01:29.3]} 18. b5 {[%clk
0:01:12.2]} 18... Nc5 {[%clk 0:01:20.8]} 19. Rhb1 {[%clk 0:00:35.4]} 19... Nd3+
{[%clk 0:01:16.2]} 20. Kg1 {[%clk 0:00:36.5]} 20... Nxb2 {[%clk 0:01:11.6]} 21.
Rxb2 {[%clk 0:00:37.2]} 21... Rxe3 {[%clk 0:01:13.3]} 22. Na4 {[%clk 0:00:29.3]}
22... Rxg3 {[%clk 0:01:03]} 23. bxc6 {[%clk 0:00:28.6]} 23... bxc6 {[%clk
0:01:04.2]} 24. Nf5 {[%clk 0:00:25.2]} 24... Rd3 {[%clk 0:00:56]} 25. Nc5 {[%clk
0:00:21.1]} 25... Rc3 {[%clk 0:00:56.2]} 0-1

[Event "*** Titled Tuesday Blitz AM"]
[Site "Chess.com"]
[Date "2020.01.07"]
[Round "2"]
[White "bhavesh1810"]
[Black "JSMastropiero"]
[Result "1-0"]
[WhiteElo "2013"]
[BlackElo "2394"]
[TimeControl "180+2"]
[EndTime "9:21:44 PST"]
[Termination "bhavesh1810 won by resignation"]

1. e4 {[%clk 0:03:01.9]} 1... c5 {[%clk 0:02:48.5]} 2. Nf3 {[%clk 0:03:02]} 2...
e6 {[%clk 0:02:47.8]} 3. d4 {[%clk 0:03:02.4]} 3... cxd4 {[%clk 0:02:48.5]} 4.
Nxd4 {[%clk 0:03:04.3]} 4... a6 {[%clk 0:02:48.5]} 5. c4 {[%clk 0:03:05]} 5...
Nf6 {[%clk 0:02:47]} 6. Nc3 {[%clk 0:03:06.3]} 6... Qc7 {[%clk 0:02:47.5]} 7.
Be2 {[%clk 0:03:04.8]} 7... Bb4 {[%clk 0:02:46.4]} 8. Qc2 {[%clk 0:03:06.3]}
8... Nc6 {[%clk 0:02:42.4]} 9. Nf3 {[%clk 0:03:05.8]} 9... Bxc3+ {[%clk
0:02:35.8]} 10. Qxc3 {[%clk 0:03:05.3]} 10... d6 {[%clk 0:02:30.4]} 11. Bg5
{[%clk 0:03:03.9]} 11... Qe7 {[%clk 0:02:28]} 12. O-O {[%clk 0:03:00.4]} 12...
e5 {[%clk 0:02:26.3]} 13. Qd3 {[%clk 0:02:50.4]} 13... Be6 {[%clk 0:02:20.9]}
14. b3 {[%clk 0:02:50.7]} 14... h6 {[%clk 0:02:20.6]} 15. Be3 {[%clk 0:02:50]}
15... Rd8 {[%clk 0:02:11.1]} 16. Bb6 {[%clk 0:02:49]} 16... Rd7 {[%clk
0:02:11.8]} 17. h3 {[%clk 0:02:48]} 17... O-O {[%clk 0:02:09.7]} 18. Rfd1 {[%clk
0:02:48.6]} 18... Nh5 {[%clk 0:02:09.8]} 19. Qe3 {[%clk 0:02:40.1]} 19... Nf4
{[%clk 0:02:07.5]} 20. Bf1 {[%clk 0:02:41.3]} 20... f5 {[%clk 0:01:53.2]} 21.
exf5 {[%clk 0:02:42]} 21... Rxf5 {[%clk 0:01:52.3]} 22. Kh2 {[%clk 0:02:31.6]}
22... Qf7 {[%clk 0:01:36]} 23. Ne1 {[%clk 0:02:10.2]} 23... Nxh3 {[%clk
0:01:26]} 24. gxh3 {[%clk 0:02:07.8]} 24... Nd4 {[%clk 0:01:18.3]} 25. Rxd4
{[%clk 0:01:39.6]} 25... Rxf2+ {[%clk 0:01:14.1]} 26. Bg2 {[%clk 0:01:41.1]}
26... exd4 {[%clk 0:01:08.1]} 27. Bxd4 {[%clk 0:01:43]} 27... Rf5 {[%clk
0:00:52.2]} 28. Nf3 {[%clk 0:01:44]} 28... Rd8 {[%clk 0:00:39.6]} 29. Rg1 {[%clk
0:01:44.3]} 29... g5 {[%clk 0:00:37.6]} 30. Bh1 {[%clk 0:01:43.2]} 30... Bd7
{[%clk 0:00:31.5]} 31. Nh4 {[%clk 0:01:39.9]} 31... Rf4 {[%clk 0:00:28.1]} 32.
Bd5 {[%clk 0:01:39.9]} 32... Qxd5 {[%clk 0:00:27.4]} 33. cxd5 {[%clk 0:01:39.6]}
33... Rxh4 {[%clk 0:00:28.4]} 34. Rxg5+ {[%clk 0:01:39.6]} 1-0

[Event "*** Titled Tuesday Blitz AM"]
[Site "Chess.com"]
[Date "2020.01.07"]
[Round "2"]
[White "dolynachess"]
[Black "Aygehovit1992"]
[Result "1-0"]
[WhiteElo "2364"]
[BlackElo "2585"]
[TimeControl "180+2"]
[EndTime "9:21:53 PST"]
[Termination "dolynachess won by resignation"]

1. d4 {[%clk 0:03:01.9]} 1... Nf6 {[%clk 0:03:00]} 2. c4 {[%clk 0:03:01.1]} 2...
g6 {[%clk 0:03:01.6]} 3. Nc3 {[%clk 0:03:01]} 3... Bg7 {[%clk 0:03:02.8]} 4. e4
{[%clk 0:03:00.7]} 4... O-O {[%clk 0:03:03.8]} 5. Nf3 {[%clk 0:03:00.8]} 5... d6
{[%clk 0:03:04.9]} 6. Be2 {[%clk 0:03:01.7]} 6... e5 {[%clk 0:03:05.8]} 7. d5
{[%clk 0:03:02.8]} 7... a5 {[%clk 0:03:05.8]} 8. Be3 {[%clk 0:03:01.9]} 8... Ng4
{[%clk 0:03:02.5]} 9. Bg5 {[%clk 0:03:03.3]} 9... f6 {[%clk 0:03:03.5]} 10. Bh4
{[%clk 0:03:04.8]} 10... g5 {[%clk 0:03:03.8]} 11. Bg3 {[%clk 0:03:05.8]} 11...
Nh6 {[%clk 0:02:59.2]} 12. Nd2 {[%clk 0:03:07.1]} 12... f5 {[%clk 0:02:58.8]}
13. f3 {[%clk 0:03:08.1]} 13... Na6 {[%clk 0:02:57.9]} 14. a3 {[%clk 0:03:07.6]}
14... Bd7 {[%clk 0:02:56.2]} 15. Bf2 {[%clk 0:03:00.5]} 15... g4 {[%clk
0:02:56.2]} 16. h3 {[%clk 0:02:45.3]} 16... gxf3 {[%clk 0:02:40.3]} 17. gxf3
{[%clk 0:02:45.5]} 17... fxe4 {[%clk 0:02:40.8]} 18. fxe4 {[%clk 0:02:28]} 18...
Nc5 {[%clk 0:02:34.9]} 19. Nf3 {[%clk 0:02:16.4]} 19... a4 {[%clk 0:02:26.7]}
20. Bxc5 {[%clk 0:02:15.1]} 20... dxc5 {[%clk 0:02:27.2]} 21. Kd2 {[%clk
0:02:05.9]} 21... Nf7 {[%clk 0:02:21.4]} 22. Kc2 {[%clk 0:02:05.3]} 22... Ra6
{[%clk 0:02:22.2]} 23. Qd3 {[%clk 0:02:01.5]} 23... Rg6 {[%clk 0:02:18.6]} 24.
Rag1 {[%clk 0:02:01.7]} 24... Nd6 {[%clk 0:02:19.5]} 25. Kb1 {[%clk 0:01:53]}
25... Rf4 {[%clk 0:02:18.7]} 26. Bd1 {[%clk 0:01:47.4]} 26... Qf6 {[%clk
0:02:17.1]} 27. Nd2 {[%clk 0:01:40.4]} 27... Rxg1 {[%clk 0:02:10.3]} 28. Rxg1
{[%clk 0:01:41.1]} 28... Rh4 {[%clk 0:02:11.4]} 29. Rg3 {[%clk 0:01:23.7]} 29...
Kh8 {[%clk 0:01:47.4]} 30. Bxa4 {[%clk 0:01:19.2]} 30... Bxa4 {[%clk 0:01:48.2]}
31. Nxa4 {[%clk 0:01:19.8]} 31... Bh6 {[%clk 0:01:35.9]} 32. Nxc5 {[%clk
0:01:17.8]} 32... Bxd2 {[%clk 0:01:35.9]} 33. Qxd2 {[%clk 0:01:16.9]} 33... b6
{[%clk 0:01:36.6]} 34. Qg2 {[%clk 0:01:05.5]} 34... Qf7 {[%clk 0:01:37.5]} 35.
Ne6 {[%clk 0:00:59.9]} 35... Nxe4 {[%clk 0:01:36]} 36. Rg7 {[%clk 0:00:57]}
36... Qe8 {[%clk 0:01:31.3]} 37. Rxc7 {[%clk 0:00:49.9]} 37... Qf8 {[%clk
0:01:03.9]} 1-0

[Event "*** Titled Tuesday Blitz AM"]
[Site "Chess.com"]
[Date "2020.01.07"]
[Round "2"]
[White "Gogolev_Artemy"]
[Black "ori99"]
[Result "1-0"]
[WhiteElo "2418"]
[BlackElo "2030"]
[TimeControl "180+2"]
[EndTime "9:22:06 PST"]
[Termination "Gogolev_Artemy won by resignation"]

1. d4 {[%clk 0:02:55.5]} 1... Nf6 {[%clk 0:03:00.2]} 2. Nf3 {[%clk 0:02:54.8]}
2... c5 {[%clk 0:03:00.5]} 3. d5 {[%clk 0:02:55.1]} 3... e6 {[%clk 0:02:53.1]}
4. c4 {[%clk 0:02:55.4]} 4... exd5 {[%clk 0:02:53.1]} 5. cxd5 {[%clk 0:02:57.3]}
5... Bd6 {[%clk 0:02:54.3]} 6. Nc3 {[%clk 0:02:57.3]} 6... O-O {[%clk 0:02:54]}
7. g3 {[%clk 0:02:52.1]} 7... Re8 {[%clk 0:02:54.2]} 8. Bg2 {[%clk 0:02:53.2]}
8... Bc7 {[%clk 0:02:49]} 9. d6 {[%clk 0:02:51.8]} 9... Ba5 {[%clk 0:02:47.1]}
10. O-O {[%clk 0:02:52.7]} 10... Nc6 {[%clk 0:02:45.8]} 11. Bg5 {[%clk
0:02:49.9]} 11... Bxc3 {[%clk 0:02:44.1]} 12. bxc3 {[%clk 0:02:50.1]} 12... h6
{[%clk 0:02:44.7]} 13. Bf4 {[%clk 0:02:50]} 13... b6 {[%clk 0:02:43.9]} 14. Ne5
{[%clk 0:02:37.5]} 14... Bb7 {[%clk 0:02:39.9]} 15. Re1 {[%clk 0:02:31.9]} 15...
g5 {[%clk 0:02:38.2]} 16. Nxc6 {[%clk 0:02:31.7]} 16... Bxc6 {[%clk 0:02:37.4]}
17. Be3 {[%clk 0:02:28.9]} 17... Bxg2 {[%clk 0:02:34.7]} 18. Kxg2 {[%clk
0:02:30.8]} 18... Ng4 {[%clk 0:02:34.1]} 19. Bd2 {[%clk 0:02:16.4]} 19... Qf6
{[%clk 0:02:34.2]} 20. f3 {[%clk 0:02:13.6]} 20... Ne3+ {[%clk 0:02:31.3]} 21.
Bxe3 {[%clk 0:02:13.9]} 21... Rxe3 {[%clk 0:02:31.5]} 22. c4 {[%clk 0:02:09.3]}
22... Rae8 {[%clk 0:02:31.3]} 23. Qd2 {[%clk 0:02:10.4]} 23... Qe6 {[%clk
0:02:29.7]} 24. Kf2 {[%clk 0:02:10.3]} 24... Qxc4 {[%clk 0:02:30.4]} 25. Rad1
{[%clk 0:02:08.8]} 25... Qe6 {[%clk 0:02:28]} 26. a4 {[%clk 0:02:07.5]} 26... f6
{[%clk 0:02:24.2]} 27. a5 {[%clk 0:02:03.8]} 27... Kg7 {[%clk 0:02:24.8]} 28.
axb6 {[%clk 0:02:04.4]} 28... axb6 {[%clk 0:02:25.6]} 29. Rb1 {[%clk 0:02:05.5]}
29... Rb3 {[%clk 0:02:19.4]} 30. Qc2 {[%clk 0:02:01.2]} 30... c4 {[%clk
0:02:13.5]} 31. Rxb3 {[%clk 0:02:00.9]} 31... cxb3 {[%clk 0:02:12.2]} 32. Qd3
{[%clk 0:02:00.7]} 32... Rc8 {[%clk 0:02:00.4]} 33. Rb1 {[%clk 0:02:01.2]} 33...
Rc6 {[%clk 0:02:00.8]} 34. Rxb3 {[%clk 0:01:58.8]} 34... Rxd6 {[%clk 0:02:01.2]}
35. Qb5 {[%clk 0:01:59.6]} 35... h5 {[%clk 0:01:58.3]} 36. Re3 {[%clk
0:01:58.2]} 36... Qd5 {[%clk 0:01:56.5]} 37. Qxd5 {[%clk 0:01:46.1]} 37... Rxd5
{[%clk 0:01:58.4]} 38. Re7+ {[%clk 0:01:46.6]} 38... Kg6 {[%clk 0:01:57.8]} 39.
Ke3 {[%clk 0:01:45.8]} 39... b5 {[%clk 0:01:57.6]} 40. Re8 {[%clk 0:01:46.9]}
40... Re5+ {[%clk 0:01:55.9]} 41. Rxe5 {[%clk 0:01:47.7]} 41... fxe5 {[%clk
0:01:57.8]} 42. Ke4 {[%clk 0:01:48.5]} 42... Kf6 {[%clk 0:01:58.2]} 43. Kd5
{[%clk 0:01:49]} 43... g4 {[%clk 0:01:50.3]} 44. Kc5 {[%clk 0:01:45.6]} 44...
Kf5 {[%clk 0:01:48]} 45. Kxb5 {[%clk 0:01:42.1]} 45... gxf3 {[%clk 0:01:45.1]}
46. exf3 {[%clk 0:01:44]} 46... e4 {[%clk 0:01:45.3]} 47. fxe4+ {[%clk
0:01:44.9]} 47... Kxe4 {[%clk 0:01:47.2]} 48. h3 {[%clk 0:01:45.9]} 48... d5
{[%clk 0:01:46.2]} 49. g4 {[%clk 0:01:47.3]} 49... hxg4 {[%clk 0:01:17.5]} 50.
hxg4 {[%clk 0:01:49.2]} 50... d4 {[%clk 0:01:18.2]} 51. g5 {[%clk 0:01:49.9]}
51... d3 {[%clk 0:01:19.2]} 52. g6 {[%clk 0:01:51]} 52... d2 {[%clk 0:01:21.1]}
53. g7 {[%clk 0:01:52.2]} 53... d1=Q {[%clk 0:01:23]} 54. g8=Q {[%clk
0:01:53.3]} 54... Qb3+ {[%clk 0:01:23.1]} 55. Qxb3 {[%clk 0:01:53.1]} 1-0